Cogmind - Beta 15 @@@ ROGUE MODE // 2025.05.09 @ 18:07:40 Player: CrossedViper Result: Destroyed by C-35 Carver with Carbide Saw Performance ------------- Evolutions (6) 3000 Regions Visited (15) 3000 Robots Destroyed (307) 1535 Value Destroyed (10675) 10675 Prototype IDs (16) 320 Alien Tech Used (0) 0 Bonus (3400) 3400 TOTAL SCORE: 21930 Bonus ------- High Alert Combat Kills 1673 Follower Combat Kills 727 Entered Garrisons 200 Registered with UFD 300 Met Optimus in HQ 500 Cogmind --------- Core Integrity 0/1150 Matter 290/300 Energy 37/100 System Corruption 6% Temperature Cool (0) Movement Flying (39) Location -4/Armory Parts ------- > --- POWER (2) -------- (None) > --- PROPULSION (6) --- Cooled Field Propulsion Drive Impulse Thruster Array > --- UTILITY (9) ------ Hacking Suite > --- WEAPON (2) ------- Kinetic Spear > --- INVENTORY (5) ---- Long-range Sensor Array Long-range Proton Cannon Advanced Plasma Cannon Peak State ------------ > --- POWER ------------ Micro Fission Core Micro Fission Core > --- PROPULSION ------- Armored Medium Treads Flexi-carbon Leg Overtuned Huge Scrapsphere Overtuned Huge Scrapsphere > --- UTILITY ---------- Scrap Suit Advanced Heat Sink Improved Target Analyzer Improved Medium Armor Plating Hacking Suite Advanced Hacking Suite System Shield Advanced System Shield > --- WEAPON ----------- Advanced Plasma Cannon Plasma Lance > --- INVENTORY -------- Armored Medium Treads Armored Medium Treads Long-range Sensor Array Long-range Proton Cannon Plasma Lance [Rating: 104] Favorites ----------- Power Cooled Ion Engine Engine Cooled Ion Engine Power Core Neutrino Core Propulsion Armored Treads Treads Armored Treads Leg Flexi-carbon Leg Wheel Compact Wheel Hover Unit Improved Antigrav System Flight Unit Experimental Cesium-ion Thruster Utility Large Storage Unit Device Seismic Detector Storage Large Storage Unit Processor Transport Network Coupler Hackware Hacking Suite Protection Hardened Heavy Armor Plating Weapon Enhanced Autogun Energy Gun Variable Charge Gun Energy Cannon Advanced Beam Cannon Ballistic Gun Enhanced Autogun Ballistic Cannon Improved Light Cannon Launcher Mini Grenade Launcher Special Weapon CPS Tube Slashing Weapon Greatsword Piercing Weapon Plasma Lance Build | -11 -10 -9 -9 -8 -8 -7 -7 -7 -7 -7 -7 -5 -5 -4 -4 ------- Run | Yrd Mat Mat Min Mat Gar Fac Was Fac Sto Rec Scr Fac Ext Fac Arm Slots Evolved 12 | . . 2 . 2 . 2 . . . . . 4 . 2 . Power 1 | . . . . . . . . . . . . 1 . . . Propulsion 4 | . . 1 . 1 . . . . . . . 1 . 1 . Utility 7 | . . 1 . 1 . 2 . . . . . 2 . 1 . Weapon . | . . . . . . . . . . . . . . . . Parts Attached 195 | 6 9 19 2 2 14 11 . 36 12 . 5 34 8 28 9 Power 17 | 1 1 3 . . . 1 . 4 . . . 4 . 3 . Engine 11 | 1 1 3 . . . 1 . 4 . . . 1 . . . Core 6 | . . . . . . . . . . . . 3 . 3 . Reactor . | . . . . . . . . . . . . . . . . Propulsion 70 | 2 2 5 . 2 4 5 . 11 6 . 2 10 2 12 7 Treads 28 | 2 . 4 . 2 4 1 . 1 4 . 2 2 . 6 . Leg 20 | . 2 1 . . . . . 4 2 . . 6 2 2 1 Wheel 12 | . . . . . . 4 . 6 . . . . . 2 . Hover 1 | . . . . . . . . . . . . . . 1 . Flight 9 | . . . . . . . . . . . . 2 . 1 6 Utility 63 | 1 3 5 1 . 6 2 . 15 2 . 1 14 5 8 . Device 26 | . 2 1 . . 1 . . 6 . . 1 9 2 4 . Storage 7 | 1 1 1 . . . . . 3 1 . . . . . . Processor 6 | . . . 1 . 1 . . 1 1 . . 1 . 1 . Hackware 6 | . . . . . 1 . . 1 . . . . 3 1 . Protection 18 | . . 3 . . 3 2 . 4 . . . 4 . 2 . Artifact . | . . . . . . . . . . . . . . . . Weapon 45 | 2 3 6 1 . 4 3 . 6 4 . 2 6 1 5 2 Energy Gun 4 | 1 . . . . . . . 1 . . . 1 . 1 . Energy Cannon 9 | . . 1 1 . 1 1 . . . . . 2 1 2 . Ballistic Gun 16 | 1 . 4 . . 2 1 . 2 2 . 1 2 . 1 . Ballistic Cannon 4 | . 2 . . . . . . 1 1 . . . . . . Launcher 7 | . 1 1 . . 1 1 . 1 1 . . 1 . . . Special Weapon 1 | . . . . . . . . . . . 1 . . . . Impact Weapon . | . . . . . . . . . . . . . . . . Slashing Weapon 1 | . . . . . . . . 1 . . . . . . . Piercing Weapon 3 | . . . . . . . . . . . . . . 1 2 Special Melee Weapon . | . . . . . . . . . . . . . . . . Unidentified Prototypes 14 | . . 4 1 . . 1 . 1 2 . . 1 . 2 2 Corrupted Parts 1 | . . . . . 1 . . . . . . . . . . System Corruption 6 | . . . . . 6 . . . . . . . . . . Parts Lost 93 | . 2 1 . . 7 11 . 9 7 . . 26 8 11 11 Power 10 | . 1 . . . . 1 . 2 1 . . 2 . 1 2 Propulsion 37 | . 1 . . . 4 7 . 4 1 . . 10 2 4 4 Utility 32 | . . 1 . . 1 2 . 2 3 . . 10 5 5 3 Weapon 14 | . . . . . 2 1 . 1 2 . . 4 1 1 2 Highest Loss Streak 12 | . 2 1 . . 3 10 . 3 6 . . 12 3 4 6 To Critical Strikes . | . . . . . . . . . . . . . . . . Average Backups 10 | 1 5 14 15 15 12 12 3 10 6 5 4 16 3 4 4 Power . | . . . 1 1 1 . . . . . . 1 . . . Propulsion 2 | . . 4 5 4 1 1 . 3 1 1 . 1 . . . Utility 2 | . . 1 2 2 4 4 . 1 1 2 2 3 . 1 1 Weapon 4 | . 4 7 6 6 4 4 3 5 3 2 1 6 2 2 2 Tool/Special . | . . . . . . . . . . . . . . . . Unused Backups 54 | . 2 12 1 . 6 7 . 8 3 . . 9 3 2 1 Power 5 | . . 1 . . 1 1 . . . . . 2 . . . Propulsion 10 | . . 2 . . . . . 4 1 . . . 3 . . Utility 11 | . . . . . 4 3 . . . . . 2 . 1 1 Weapon 24 | . 2 9 1 . 1 2 . 4 2 . . 2 . 1 . Tool/Special 4 | . . . . . . 1 . . . . . 3 . . . Average Slot Usage (%) 79 | . 97 97 100 86 89 87 15 75 76 46 46 75 37 57 44 Engine 6 | . 13 10 11 9 9 6 . 5 3 . . 1 . . . Core 1 | . . . . . . . . . . . . 6 . 5 4 Treads 21 | . 25 29 33 32 35 15 . 3 7 30 30 16 . 5 2 Leg 2 | . 2 3 . . . . . 2 21 . . 5 2 3 . Wheel 2 | . . . . . . 12 7 16 . . . . . 5 1 Device 8 | . 12 11 11 9 2 13 . 13 1 . . 13 12 6 2 Storage 6 | . 14 11 11 9 9 6 . 4 5 . . 4 . . . Processor 5 | . . . 9 9 7 7 7 13 7 7 7 1 3 2 . Hackware 3 | . . . . . 2 . . . 7 7 7 5 11 16 12 Protection 4 | . . 9 1 . 5 6 . 1 8 . . 5 . 2 . Energy Cannon 2 | . . . . . 9 6 . . . . . 2 . 3 1 Ballistic Gun 8 | . 6 20 22 18 7 6 . 5 8 . . 3 . 1 . Ballistic Cannon 1 | . 13 . . . . . . . . . . . . . . Peak Build Rating 104 | 6 11 25 26 28 41 42 4 38 41 21 28 78 49 104 88 Average Rating 32 | 5 8 22 25 27 33 38 3 28 30 21 22 60 36 68 58 On Entrance 22 | . 6 11 25 26 28 36 4 4 36 21 21 27 26 18 73 Naked Turns . | . . . . . . . . . . . . . . . . Heaviest Build 147 | 13 34 42 42 35 58 82 . 98 27 . 80 147 18 41 23 Greatest Support 137 | 40 40 60 60 80 80 80 3 56 36 3 114 137 5 81 36 Greatest Overweight (x) 5 | . 3 1 . . . 5 . 2 3 . 1 2 3 2 1 Average Overweight (x) . | . . . . . . 1 . . . . . . . . . Largest Inventory Capacity 25 | 8 15 15 15 15 15 15 5 25 10 5 25 25 5 5 5 Average Capacity 13 | 7 11 15 15 15 15 14 5 16 8 5 5 23 5 5 5 Most Carried 25 | 2 12 15 15 15 15 15 5 25 10 5 14 21 5 5 5 Average Carried 11 | 1 5 14 14 14 13 14 4 11 7 5 4 17 3 4 3 Final Capacity 25 | 8 15 15 15 15 15 5 5 8 5 5 25 5 5 5 5 Final Carried 15 | 2 12 15 15 15 15 5 5 8 5 5 14 5 3 5 3 Class Distribution -------------------- 61% | Mutant 12% | Scavenger-Mutant 10% | Commander-Mutant 5% | Hacker-Mutant 3% | Scavenger-Assassin Dominant Class ---------------- Mutant | -10/Materials Mutant | -9/Materials Mutant | -9/Mines Mutant | -8/Materials Mutant | -8/Garrison Scavenger-Mutant | -7/Factory Mutant | -7/Waste Scavenger-Assassin | -7/Factory Mutant | -7/Storage Commander-Mutant | -7/Recycling Commander-Mutant | -7/Scraptown Scavenger-Mutant | -5/Factory Hacker-Mutant | -5/Extension Hacker-Mutant | -4/Factory Hacker-Mutant | -4/Armory Resources | -11 -10 -9 -9 -8 -8 -7 -7 -7 -7 -7 -7 -5 -5 -4 -4 ----------- Run | Yrd Mat Mat Min Mat Gar Fac Was Fac Sto Rec Scr Fac Ext Fac Arm Matter Collected 7484 | 221 495 1208 83 53 760 550 . 870 530 63 129 1231 735 451 105 Remotely . | . . . . . . . . . . . . . . . . Salvage Created 10946 | . 725 1631 . . 1093 1482 . 1167 595 . . 1999 576 1426 252 Parts 599 | . 46 130 . . 59 63 . 60 35 . . 92 21 79 14 Haulers Intercepted 14 | . 1 6 . . . 3 . . 3 . . 1 . . . Recyclers Shooed 14 | . . 1 . . . 2 . 2 . . . 5 . 4 . Parts Field Recycled . | . . . . . . . . . . . . . . . . Retrieved Matter . | . . . . . . . . . . . . . . . . Parts Self-Destructed . | . . . . . . . . . . . . . . . . Prevented . | . . . . . . . . . . . . . . . . Kills | -11 -10 -9 -9 -8 -8 -7 -7 -7 -7 -7 -7 -5 -5 -4 -4 ------- Run | Yrd Mat Mat Min Mat Gar Fac Was Fac Sto Rec Scr Fac Ext Fac Arm Combat Hostiles Destroyed 207 | . 22 31 . . 33 34 . 10 14 . . 41 4 14 4 Melee 9 | . . . . . . . . 3 . . . . . 2 4 Guns 73 | . 11 21 . . 5 3 . 6 5 . . 14 . 8 . Cannons 37 | . 5 1 . . 6 9 . . 1 . . 11 . 4 . AOE 87 | . 6 9 . . 21 22 . 1 8 . . 16 4 . . Classes Destroyed 17 | . 5 6 . . 2 2 . . 1 . . 1 . . . Worker 28 | . . 3 1 . . 4 . 7 1 . . 8 1 3 . Builder 13 | . 2 1 . . . 1 . 2 1 . . 2 1 3 . Tunneler 5 | . . 3 . . . 1 . 1 . . . . . . . Hauler 14 | . 1 6 . . . 3 . . 3 . . 1 . . . Recycler 26 | . . 3 . . . 5 . 7 . . . 4 5 2 . Mechanic 3 | . . 1 . . . 1 . . . . . . . 1 . Operator 1 | . . . . . . . . . 1 . . . . . . Watcher 10 | . 2 2 . . . 1 . 4 1 . . . . . . Swarmer 42 | . 3 9 . . 10 . . . 6 . . 10 4 . . Grunt 97 | . 19 13 . . 14 19 . 4 5 . . 16 . 5 2 Brawler 2 | . . . . . . . . . . . . 1 . 1 . Duelist 1 | . . 1 . . . . . . . . . . . . . Protector 2 | . . . . . . 2 . . . . . . . . . Sentry 27 | . . 8 . . 5 4 . 3 3 . . 4 . . . Specialist 5 | . . . . . 3 2 . . . . . . . . . Hunter 15 | . . . . . 1 3 . . . . . 6 . 5 . Programmer 16 | . . . . . . 4 . 3 . . . 4 . 3 2 Best Kill Streak 21 | . 4 5 1 . 4 14 . 7 5 . . 21 6 12 2 Combat Bots Only 13 | . 3 4 . . 4 11 . 2 4 . . 13 4 4 2 Max Kills in Single Turn 7 | . 3 4 1 . 3 4 . 1 3 . . 7 3 2 1 Gunslinging 1 | . . 1 . . . . . . . . . 1 . . . Exploded 5 | . 3 3 . . 3 3 . 1 2 . . 5 2 . . Melee 1 | . . . . . . . . 1 . . . . . 1 1 Uniques/NPCs Destroyed . | . . . . . . . . . . . . . . . . Combat | -11 -10 -9 -9 -8 -8 -7 -7 -7 -7 -7 -7 -5 -5 -4 -4 -------- Run | Yrd Mat Mat Min Mat Gar Fac Was Fac Sto Rec Scr Fac Ext Fac Arm Hostile Shots Fired 1872 | . 79 105 7 . 183 421 . 180 199 . . 321 46 246 85 Missed 615 | . 14 28 3 . 47 150 . 59 66 . . 97 17 105 29 Hits 1257 | . 65 77 4 . 136 271 . 121 133 . . 224 29 141 56 Melee 6 | . . 1 . . . . . . . . . . 1 1 3 Projectile 1251 | . 65 76 4 . 136 271 . 121 133 . . 224 28 140 53 AOE 12 | . . . . 1 . . . . . . . . 3 4 4 Critical Strikes 41 | . 2 2 . . 6 5 . 2 . . . 10 1 9 4 Part Disruptions 1 | . . . . . . . . . . . . 1 . . . Damage Taken 19369 | . 839 1006 33 121 2045 3439 . 1198 1546 . . 4116 667 3044 1315 Core 3330 | . 200 152 . . 216 264 . 259 172 . . 687 223 555 602 Absorbed by Shields 42 | . . . . . 32 . . . . . . . 10 . . Ignored by Resistances 448 | . . . . . . . . . . . . 448 . . . Regen/Repaired (Parts) 234 | . 51 123 . . . . . . . . . . . 60 . Core Remaining (%) 41 | 100 20 . 62 . 60 . . . . . . . 9 . . Volleys Fired 718 | . 75 119 1 5 109 88 . 48 42 . . 139 12 76 4 Largest 2 | . 2 2 2 2 2 2 . 2 2 . . 2 1 2 1 Hottest 253 | . 66 91 50 50 136 108 . 105 60 . . 253 81 130 98 Shots Fired 1202 | . 144 225 2 10 163 150 . 80 72 . . 232 12 108 4 Gun 789 | . 92 211 2 10 64 62 . 77 62 . . 143 . 66 . Cannon 322 | . 47 3 . . 81 68 . . 2 . . 73 2 42 4 Launcher 91 | . 5 11 . . 18 20 . 3 8 . . 16 10 . . Special . | . . . . . . . . . . . . . . . . Kinetic 714 | . 94 211 2 10 64 62 . 63 64 . . 78 . 66 . Thermal 395 | . 45 3 . . 81 68 . 14 . . . 138 . 42 4 Explosive 91 | . 5 11 . . 18 20 . 3 8 . . 16 10 . . Electromagnetic 2 | . . . . . . . . . . . . . 2 . . Robot Hit Streak 20 | . 11 12 . 3 19 10 . 20 16 . . 18 5 8 . Robot Miss Streak 31 | . 4 5 2 4 3 3 . 9 31 . . 4 1 4 . Penetration Max 2 | . . . . . . 2 . . . . . 1 . 1 . Secondary Targets 10 | . 3 3 . . . . . . 2 . . 2 . . . Max Gunslinging Chain 1 | . 1 1 . . . . . . 1 . . 1 . . . Shots Hit Robots 780 | . 99 124 . 6 76 96 . 92 44 . . 149 5 70 19 Core Hits 541 | . 40 64 . 1 52 106 . 47 42 . . 117 22 43 7 Critical Kills 4 | . . 1 . . 1 1 . . . . . . . 1 . Critical Parts Destroyed 8 | . . 2 . . 1 1 . . . . . 2 . 2 . Critical Strikes 18 | . 2 4 . . 2 2 . 2 . . . 2 . 3 1 Meltdown 1 | . . . . . 1 . . . . . . . . . . Destroy 12 | . . 4 . . 1 2 . . . . . 2 . 3 . Blast 2 | . 2 . . . . . . . . . . . . . . Sever 2 | . . . . . . . . 2 . . . . . . . Impale 1 | . . . . . . . . . . . . . . . 1 Melee Attacks 75 | . . . . . . . . 34 . . . . . 10 31 Impact . | . . . . . . . . . . . . . . . . Slashing 34 | . . . . . . . . 34 . . . . . . . Piercing 41 | . . . . . . . . . . . . . . 10 31 Sneak Attacks 15 | . . . . . . . . 14 . . . . . 1 . Combat Hostiles . | . . . . . . . . . . . . . . . . Follow-up Attacks 2 | . . . . . . . . . . . . . . . 2 Damage Inflicted 34144 | . 1861 3215 13 113 3135 7327 . 3754 1868 . . 7991 1284 2743 840 Guns 10370 | . 827 2196 . 113 679 778 . 1124 812 . . 2397 . 1444 . Cannons 5129 | . 644 62 . . 810 1172 . . 80 . . 1450 36 875 . Explosions 14843 | . 384 946 . . 1646 5377 . 241 954 . . 4047 1248 . . Melee 3618 | . . . . . . . . 2379 . . . . . 399 840 Ramming 184 | . 6 11 13 . . . . 10 22 . . 97 . 25 . Kinetic 9247 | . 1087 2196 . 113 679 778 . 841 892 . . 1217 . 1444 . Thermal 7696 | . 384 62 . . 810 2413 . 283 . . . 2869 . 875 . Explosive 13363 | . 384 946 . . 1646 4136 . 241 954 . . 3808 1248 . . Electromagnetic 36 | . . . . . . . . . . . . . 36 . . Impact . | . . . . . . . . . . . . . . . . Slashing 2379 | . . . . . . . . 2379 . . . . . . . Piercing 1239 | . . . . . . . . . . . . . . 399 840 Highest Corruption 17 | . 5 1 1 . 6 8 15 17 11 11 . 3 3 2 6 Average Corruption 5 | . 4 1 1 . 6 3 12 13 9 11 . 2 3 2 4 Corruption Purged 11 | . . . . . . . . 10 . . . 1 . . . Corruption Blocked . | . . . . . . . . . . . . . . . . Effects 179 | . 22 5 13 . 5 13 2 57 18 19 . 9 9 3 4 Message Errors 47 | . 3 1 2 . . 4 . 19 5 2 . 4 5 . 2 Matter Fused 32 | . 7 1 4 . 1 3 1 6 3 4 . 1 . 1 . Heat Flow Errors 26 | . 5 . 2 . 2 . . 11 1 1 . 2 2 . . Energy Discharges 14 | . 3 . 1 . 1 . . 4 . 3 . 1 1 . . Parts Rejected 2 | . . 1 . . . 1 . . . . . . . . . Parts Fused 4 | . 2 . . . . . . 2 . . . . . . . Data Loss (minor) 22 | . . . 3 . . 2 1 9 3 2 . . 1 . 1 Data Loss (major) 18 | . 1 1 1 . 1 1 . 3 3 4 . . . 2 1 Misfires 3 | . 1 . . . . 1 . . . . . 1 . . . Alerts 1 | . . . . . . 1 . . . . . . . . . Misdirections 5 | . . . . . . . . 1 1 3 . . . . . Weapon Failures 5 | . . 1 . . . . . 2 2 . . . . . . Overload Shots 1 | . . . . . . . . . . . . 1 . . . Overflow Damage 1455 | . 6 30 . . 27 231 . 732 21 . . 227 44 105 32 Projectiles 81 | . 6 . . . . 4 . . . . . 43 . 28 . Explosions 529 | . . 30 . . 27 227 . . 21 . . 180 44 . . Melee 845 | . . . . . . . . 732 . . . 4 . 77 32 Knockbacks 7 | . 6 . . . . . . . . . . 1 . . . Impact 1 | . . . . . . . . . . . . 1 . . . Kinetic 5 | . 5 . . . . . . . . . . . . . . Secondary 1 | . 1 . . . . . . . . . . . . . . Self-Inflicted Damage 902 | . 69 26 . . 178 290 . 4 129 . . 169 28 9 . Shots 28 | . 3 2 . . 5 11 . . 3 . . 3 1 . . Rammed 25 | . 2 3 4 . . . . 3 4 . . 4 . 5 . Targets Rammed 31 | . 2 3 5 . . . . 3 4 . . 8 . 6 . Kicked 4 | . . . . . . . . . . . . 3 . 1 . Crushed 2 | . . . 1 . . . . . . . . 1 . . . Highest Temperature 503 | . 264 90 124 . 399 72 . 293 128 117 . 503 225 288 176 Average Temperature 92 | . 74 18 67 . 123 21 . 99 40 66 . 137 83 108 86 Received Heat Transfer 4292 | . 429 363 . . 640 798 . 342 276 . . 891 51 303 199 Effects 17 | . . . . . 6 . . 2 . . . 9 . . . Shutdowns 1 | . . . . . . . . . . . . 1 . . . Energy Bleed 6 | . . . . . 1 . . 2 . . . 3 . . . Interference 7 | . . . . . 4 . . . . . . 3 . . . Matter Decay 1 | . . . . . 1 . . . . . . . . . . Damage (minor) 1 | . . . . . . . . . . . . 1 . . . Damage (core) 1 | . . . . . . . . . . . . 1 . . . Siege Activations . | . . . . . . . . . . . . . . . . Martial Activations . | . . . . . . . . . . . . . . . . Shielding Activations . | . . . . . . . . . . . . . . . . Robots Disrupted . | . . . . . . . . . . . . . . . . Combat Hostiles . | . . . . . . . . . . . . . . . . Robots Corrupted . | . . . . . . . . . . . . . . . . Combat Hostiles . | . . . . . . . . . . . . . . . . Parts Fried . | . . . . . . . . . . . . . . . . Impact Corruptions 1 | . . . . . . . . . . . . 1 . . . Robots Melted 1 | . . . . . 1 . . . . . . . . . . Combat Hostiles 1 | . . . . . 1 . . . . . . . . . . Parts Melted 23 | . . 1 . . 3 3 . 3 . . . 8 . 5 . Heat Transferred 11310 | . 850 111 . . 1406 2893 . 600 . . . 4150 . 1300 . Parts Sabotaged 2 | . . . . . . . . . . . . . . 2 . Parts Stolen . | . . . . . . . . . . . . . . . . Parts Stripped . | . . . . . . . . . . . . . . . . Power Chain Reactions . | . . . . . . . . . . . . . . . . Alert | -11 -10 -9 -9 -8 -8 -7 -7 -7 -7 -7 -7 -5 -5 -4 -4 ------- Run | Yrd Mat Mat Min Mat Gar Fac Was Fac Sto Rec Scr Fac Ext Fac Arm Maximum Alert Level 4 | . 1 2 1 . 4 4 2 1 1 . . 3 2 3 1 Low Security (%) 48 | 100 98 47 93 100 22 . . 56 60 100 . 66 . 4 72 Level 1 14 | . 1 20 6 . 18 . . 43 39 . . . 1 18 27 Level 2 21 | . . 32 . . 18 30 100 . . . . 15 98 65 . Level 3 13 | . . . . . 29 61 . . . . . 16 . 12 . Level 4 2 | . . . . . 11 7 . . . . . . . . . Level 5 . | . . . . . . . . . . . . . . . . High Security . | . . . . . . . . . . . . . . . . Max Security . | . . . . . . . . . . . . . . . . Peak Influence 1401 | . 208 578 224 23 1192 1401 484 310 372 191 . 915 597 737 301 Initial 625 | . . 85 219 . 2 625 484 310 85 141 . . 373 272 295 Average 351 | . 65 296 78 . 577 817 476 195 187 155 . 277 498 543 126 Influence Increases 9506 | . 715 1145 109 27 1260 1378 . 466 586 237 . 1817 665 884 217 Destroy 0b10 Robot/C 4600 | . 440 620 80 20 660 640 . 200 280 20 . 840 260 460 80 Destroy 0b10 Robot/NC 525 | . 25 95 5 . . 90 . 105 40 . . 75 35 55 . Destroy Leader 972 | . 106 186 10 . 20 148 . 88 78 . . 172 40 104 20 Allied During Kill 213 | . . . 14 3 . . . . . 7 . 2 66 121 . Successful Hack 164 | . 28 42 . 4 12 24 . . 6 . . . 16 . 32 Select Force Hacks 360 | . 60 60 . . . . . . . 210 . 30 . . . Disable Machine 555 | . 15 75 . . 75 150 . 30 60 . . 75 15 60 . Anti-Garrison Action 500 | . . . . . 350 150 . . . . . . . . . Destroy Structure 1137 | . 41 52 . . 143 176 . 28 77 . . 368 158 84 10 Partial Spotted 90 | . . 15 . . . . . . 15 . . 15 15 . 30 Lose Combat Pursuer 390 | . . . . . . . . 15 30 . . 240 60 . 45 Influence Decreases 9479 | . 511 787 671 23 72 1187 939 722 411 460 140 1053 873 836 794 Entered New Map 3513 | . . 119 343 . 2 567 899 134 103 222 140 . 391 284 309 Time Decay 4122 | . 419 648 328 10 . 510 20 498 238 238 . 479 302 342 90 Lost Part 922 | . 20 10 . . 70 110 . 90 70 . . 252 80 110 110 Lost Ally 265 | . . 10 . 13 . . 20 . . . . 22 100 100 . Purge Threat 657 | . 72 . . . . . . . . . . 300 . . 285 Squads Dispatched 69 | . 7 6 1 1 . 13 . 6 4 . . 19 2 8 2 Investigation 19 | . 6 4 1 . . . . . . . . 7 . 1 . Extermination 12 | . . . . . . 3 . 4 . . . 3 . 2 . Reinforcement 25 | . 1 2 . . . 4 . 2 3 . . 7 1 3 2 Assault 6 | . . . . . . 3 . . . . . . 1 2 . Garrison 7 | . . . . 1 . 3 . . 1 . . 2 . . . Intercept . | . . . . . . . . . . . . . . . . Searches Triggered . | . . . . . . . . . . . . . . . . Construction Impeded 7 | . . . . . . . . 1 . . . 4 1 1 . Haulers Reinforced 5 | . . . . . . 2 . . 1 . . 2 . . . Active Scanning Responses . | . . . . . . . . . . . . . . . . Cargo Convoy Interrupts 1 | . . . . . . 1 . . . . . . . . . Stealth | -11 -10 -9 -9 -8 -8 -7 -7 -7 -7 -7 -7 -5 -5 -4 -4 --------- Run | Yrd Mat Mat Min Mat Gar Fac Was Fac Sto Rec Scr Fac Ext Fac Arm Distress Signals 18 | . 2 3 . . . 1 . 2 3 . . 1 1 5 . Communications Jammed . | . . . . . . . . . . . . . . . . Distress Signals . | . . . . . . . . . . . . . . . . Times Spotted 368 | . 26 43 4 4 33 54 6 18 24 1 . 70 29 46 10 Peak Tracking Total 12 | . 5 5 4 2 5 12 6 4 7 1 . 10 7 11 4 Tactical Retreats 16 | . . . . . . . . 1 2 . . 6 4 . 3 Traps | -11 -10 -9 -9 -8 -8 -7 -7 -7 -7 -7 -7 -5 -5 -4 -4 ------- Run | Yrd Mat Mat Min Mat Gar Fac Was Fac Sto Rec Scr Fac Ext Fac Arm Traps Triggered 15 | . 4 3 . . 4 1 . . 1 . . . 1 1 . Indirectly . | . . . . . . . . . . . . . . . . Trap Hack Attempts . | . . . . . . . . . . . . . . . . Triggered . | . . . . . . . . . . . . . . . . Disarmed . | . . . . . . . . . . . . . . . . Reprogrammed . | . . . . . . . . . . . . . . . . Reused . | . . . . . . . . . . . . . . . . Traps Extracted . | . . . . . . . . . . . . . . . . Installed . | . . . . . . . . . . . . . . . . Triggered . | . . . . . . . . . . . . . . . . Machines | -11 -10 -9 -9 -8 -8 -7 -7 -7 -7 -7 -7 -5 -5 -4 -4 ---------- Run | Yrd Mat Mat Min Mat Gar Fac Was Fac Sto Rec Scr Fac Ext Fac Arm Machines Disabled 41 | . 1 5 . . 8 11 . 2 4 . . 5 1 4 . Max in Single Turn 4 | . 1 1 . . 1 4 . 1 1 . . 1 1 1 . Garrison Access 2 | . . . . . . 1 . . 1 . . . . . . Garrison Relay 2 | . . . . . 2 . . . . . . . . . . Machines Repaired . | . . . . . . . . . . . . . . . . Machines Dismantled . | . . . . . . . . . . . . . . . . Machines Sabotaged . | . . . . . . . . . . . . . . . . Overloaded Fab Kills . | . . . . . . . . . . . . . . . . Hacking | -11 -10 -9 -9 -8 -8 -7 -7 -7 -7 -7 -7 -5 -5 -4 -4 --------- Run | Yrd Mat Mat Min Mat Gar Fac Was Fac Sto Rec Scr Fac Ext Fac Arm Machines Accessed 81 | . 10 14 1 1 2 3 . 2 5 9 6 11 10 4 3 Terminals 50 | . 7 10 . . 2 3 . 1 4 2 . 5 10 3 3 Fabricators . | . . . . . . . . . . . . . . . . Repair Stations 2 | . 1 1 . . . . . . . . . . . . . Recycling Units 19 | . 2 2 . . . . . 1 . 7 . 6 . 1 . Scanalyzers 1 | . . 1 . . . . . . . . . . . . . Garrison Access 2 | . . . . 1 . . . . 1 . . . . . . Total Hacks 229 | . 29 40 1 1 4 10 . 6 11 12 43 20 27 11 14 Successful 138 | . 13 22 1 1 1 4 . 2 4 9 43 10 15 3 10 Failed 90 | . 16 17 . . 3 6 . 4 7 3 . 10 12 8 4 Catastrophic 12 | . 3 1 . . . . . . 1 . . 3 1 1 2 Database Lockouts 1 | . . 1 . . . . . . . . . . . . . Manual 119 | . 26 32 . . . 4 . . 1 9 . 15 15 7 10 Terminals 149 | . 26 30 . . 4 10 . 3 7 5 . 13 27 10 14 Fabricators . | . . . . . . . . . . . . . . . . Repair Stations 4 | . 1 3 . . . . . . . . . . . . . Recycling Units 25 | . 2 5 . . . . . 3 . 7 . 7 . 1 . Scanalyzers 2 | . . 2 . . . . . . . . . . . . . Garrison Access 5 | . . . . 1 . . . . 4 . . . . . . Terminal Hacks 85 | . 7 5 1 . 1 4 . 1 3 . 43 4 7 2 7 Record 39 | . . 2 . . . . . . . . 37 . . . . Part Schematic 3 | . 3 . . . . . . . . . . . . . . Robot Analysis 10 | . 3 1 . . . . . . . . 6 . . . . Open Door 10 | . . . 1 . . . . . 3 . . 1 5 . . Branch Access Points 3 | . . 1 . . . . . . . . . 1 . 1 . Emergency Access Points 1 | . . . . . 1 . . . . . . . . . . Terminal Index 2 | . . . . . . . . . . . . . . . 2 Scanalyzer Index 1 | . . . . . . . . . . . . . . . 1 Alert Level 2 | . . . . . . 1 . 1 . . . . . . . Unreport Threat 6 | . 1 . . . . . . . . . . 2 . . 3 Hauler Manifests 2 | . . . . . . 1 . . . . . . 1 . . Registered Components 2 | . . . . . . . . . . . . . 1 . 1 Registered Prototypes 1 | . . . . . . . . . . . . . . 1 . Zone Layout 3 | . . 1 . . . 2 . . . . . . . . . Fabricator Hacks . | . . . . . . . . . . . . . . . . Repair Station Hacks 2 | . . 2 . . . . . . . . . . . . . Scan Component 1 | . . 1 . . . . . . . . . . . . . Repair 1 | . . 1 . . . . . . . . . . . . . Recycling Unit Hacks 1 | . . . . . . . . 1 . . . . . . . Retrieve Matter 1 | . . . . . . . . 1 . . . . . . . Scanalyzer 2 | . . 2 . . . . . . . . . . . . . Insert Component 1 | . . 1 . . . . . . . . . . . . . Analyze 1 | . . 1 . . . . . . . . . . . . . Garrison Access Hacks 2 | . . . . 1 . . . . 1 . . . . . . Unlock Access 1 | . . . . 1 . . . . . . . . . . . Seal Access 1 | . . . . . . . . . 1 . . . . . . Unauthorized Hacks 46 | . 6 13 . . . . . . . 9 . 6 8 1 3 Terminals 27 | . 3 11 . . . . . . . 2 . . 8 . 3 Track 4 | . . . . . . . . . . 1 . . . . 3 Assimilate 1 | . . 1 . . . . . . . . . . . . . Botnet 9 | . 2 3 . . . . . . . 1 . . 3 . . Disrupt 1 | . . . . . . . . . . . . . 1 . . Operators 2 | . . 1 . . . . . . . . . . 1 . . Skim 10 | . 1 6 . . . . . . . . . . 3 . . Fabricators . | . . . . . . . . . . . . . . . . Repair Stations 1 | . 1 . . . . . . . . . . . . . . Patch 1 | . 1 . . . . . . . . . . . . . . Recycling Units 18 | . 2 2 . . . . . . . 7 . 6 . 1 . Tunnel 12 | . 2 2 . . . . . . . 7 . 1 . . . Fedlink 5 | . . . . . . . . . . . . 5 . . . Scrapoids 1 | . . . . . . . . . . . . . . 1 . Scanalyzers . | . . . . . . . . . . . . . . . . Garrison Access . | . . . . . . . . . . . . . . . . Data Cores Recovered 1 | . . . . 1 . . . . . . . . . . . Used . | . . . . . . . . . . . . . . . . Hacking Detections 44 | . 7 10 . . 1 3 . 1 4 2 . 5 5 3 3 Full Trace Events 11 | . 5 4 . . 1 . . . . . . 1 . . . Feedback Events 2 | . . . . . 1 . . . . . . 1 . . . Corruption 1 | . . . . . . . . . . . . 1 . . . Hackware Fried 1 | . . . . . 1 . . . . . . . . . . Feedback Blocked . | . . . . . . . . . . . . . . . . Robot Schematics Acquired . | . . . . . . . . . . . . . . . . Robots Built . | . . . . . . . . . . . . . . . . Authchips . | . . . . . . . . . . . . . . . . Time . | . . . . . . . . . . . . . . . . Total Robot Build Rating . | . . . . . . . . . . . . . . . . Part Schematics Acquired 4 | . 3 1 . . . . . . . . . . . . . Parts Built . | . . . . . . . . . . . . . . . . Authchips . | . . . . . . . . . . . . . . . . Time . | . . . . . . . . . . . . . . . . Total Part Build Rating . | . . . . . . . . . . . . . . . . Parts Repaired 1 | . . 1 . . . . . . . . . . . . . Time 26 | . . 26 . . . . . . . . . . . . . Parts Recycled . | . . . . . . . . . . . . . . . . Recycled Matter . | . . . . . . . . . . . . . . . . Retrieved Matter . | . . . . . . . . . . . . . . . . Retrieved Components . | . . . . . . . . . . . . . . . . Parts Scanalyzed 1 | . . 1 . . . . . . . . . . . . . Part Schematics Acquired 1 | . . 1 . . . . . . . . . . . . . Parts Damaged . | . . . . . . . . . . . . . . . . Bothacking | -11 -10 -9 -9 -8 -8 -7 -7 -7 -7 -7 -7 -5 -5 -4 -4 ------------ Run | Yrd Mat Mat Min Mat Gar Fac Was Fac Sto Rec Scr Fac Ext Fac Arm Used RIF Installer . | . . . . . . . . . . . . . . . . Robots Hacked . | . . . . . . . . . . . . . . . . Non-combat . | . . . . . . . . . . . . . . . . Combat . | . . . . . . . . . . . . . . . . Robot Hacks Applied . | . . . . . . . . . . . . . . . . Relay Couplers Released 9 | . . . . . 8 1 . . . . . . . . . Machine Destruction 9 | . . . . . 8 1 . . . . . . . . . Fabnet Peak Effective % . | . . . . . . . . . . . . . . . . Robots Rewired 10 | . . . . . . . . . . 7 . . 3 . . Allies Hacked . | . . . . . . . . . . . . . . . . Hacks Repelled . | . . . . . . . . . . . . . . . . Allies | -11 -10 -9 -9 -8 -8 -7 -7 -7 -7 -7 -7 -5 -5 -4 -4 -------- Run | Yrd Mat Mat Min Mat Gar Fac Was Fac Sto Rec Scr Fac Ext Fac Arm Total Allies 25 | . . 1 3 . . . 1 . . 7 . . 8 5 . Largest Group 7 | . . . 3 3 . . 1 . . 7 5 5 6 4 . Highest-Rated Group 322 | . . . 40 40 . . 31 . . 96 66 66 322 188 . Highest-Rated Ally 159 | . . . 16 16 . . 31 . . 20 16 16 159 47 . Initial Warlord ECA Mod 30 | . . . . . . 5 5 5 5 5 5 . . . . Total Orders 3 | . . . . . . . . . . . . 2 1 . . AID 1 | . . . . . . . . . . . . . 1 . . RETURN 2 | . . . . . . . . . . . . 2 . . . Ally Attacks 213 | . . . 14 21 . . 11 . . 12 . 11 84 60 . Total Damage 3564 | . . . 129 180 . . 146 . . 174 . 119 1522 1294 . Kills 34 | . . . 4 1 . . . . . 1 . 1 16 11 . Allies Corrupted . | . . . . . . . . . . . . . . . . Allies Melted . | . . . . . . . . . . . . . . . . Intel | -11 -10 -9 -9 -8 -8 -7 -7 -7 -7 -7 -7 -5 -5 -4 -4 ------- Run | Yrd Mat Mat Min Mat Gar Fac Was Fac Sto Rec Scr Fac Ext Fac Arm Active Infowar (turns) 10181 | . 994 2361 932 151 243 1399 42 1334 515 503 1147 560 . . . Sensors 496 | . . . . . . . . 496 . . . . . . . Seismic 6237 | . 994 2361 932 151 93 1257 . 351 98 . . . . . . T.N.C. 5649 | . . . . . 150 1399 42 1334 514 503 1147 560 . . . Robot Analysis Total 10 | . 3 1 . . . . . . . . 6 . . . . Derelict Logs Recovered 3 | . . . 3 . . . . . . . . . . . . Drone Launches 3 | . . . . . . . . . . . . 3 . . . Drone Recoveries 2 | . . . . . . . . . . . . 2 . . . Exploration | -11 -10 -9 -9 -8 -8 -7 -7 -7 -7 -7 -7 -5 -5 -4 -4 ------------- Run | Yrd Mat Mat Min Mat Gar Fac Was Fac Sto Rec Scr Fac Ext Fac Arm Turns Passed 15008 | 73 1234 2361 932 151 2036 1399 42 1334 515 503 1147 1636 672 771 202 Spaces Moved 11274 | 40 584 1111 544 80 1002 844 79 929 425 651 2116 939 1005 694 231 Core 3763 | 1 . . . . . 45 79 115 228 651 2105 . 231 308 . Treads 3699 | 39 526 1006 544 80 1002 49 . . 3 . 11 370 . 69 . Legs 564 | . 58 105 . . . . . 68 194 . . 138 . 1 . Wheels 1839 | . . . . . . 750 . 746 . . . . . 316 27 Hover . | . . . . . . . . . . . . . . . . Flight 1409 | . . . . . . . . . . . . 431 774 . 204 Fastest Speed 25 | 50 160 120 166 165 165 50 50 50 50 50 50 25 25 50 31 Average Speed 102 | 157 164 166 166 165 166 119 50 101 79 50 51 123 43 72 40 Slowest Speed 330 | 160 330 250 166 166 170 175 50 185 200 50 160 320 295 170 80 Overloaded Moves . | . . . . . . . . . . . . . . . . Propulsion Burnouts . | . . . . . . . . . . . . . . . . Robots Hopped 18 | . . . . . . . . . . . . 6 9 . 3 Potential Cave-ins . | . . . . . . . . . . . . . . . . Cave-ins Triggered . | . . . . . . . . . . . . . . . . Exploration Rate (%) 54 | 4 97 83 100 10 91 24 75 18 64 90 88 33 49 24 22 Regions Visited 15 Branch Regions 6 Pre-discovered Areas 19 | . 2 2 2 . . . . . . 7 4 2 . . . Known Exits Taken 7 | . . 1 1 1 . . . 1 . . . 1 1 1 . Unknown Exits Taken 5 | 1 1 . . . . . . . 1 1 1 . . . . Scrap Searched 4 | . . . 1 . . . . . . . 3 . . . . Spaces Dug 262 | . . 28 . . 47 28 . . 50 . . 34 68 3 4 Terrain Destroyed 974 | . 38 64 . . 91 239 . 31 99 . . 237 132 37 6 Melee 4 | . . . . . . . . . . . . . . 1 3 Projectile 92 | . 3 . . . 4 6 . . . . . 40 . 36 3 AOE 878 | . 35 64 . . 87 233 . 31 99 . . 197 132 . . Terrain Rammed . | . . . . . . . . . . . . . . . . Walls Destroyed . | . . . . . . . . . . . . . . . . Machines Disabled . | . . . . . . . . . . . . . . . . Actions | -11 -10 -9 -9 -8 -8 -7 -7 -7 -7 -7 -7 -5 -5 -4 -4 --------- Run | Yrd Mat Mat Min Mat Gar Fac Was Fac Sto Rec Scr Fac Ext Fac Arm Total 13596 | 47 712 1485 570 94 1223 1087 81 1161 532 827 2182 1219 1222 864 290 Wait 835 | . 24 178 14 3 52 101 . 60 11 132 17 64 139 26 14 Move 11224 | 39 583 1110 543 80 999 844 78 928 424 650 2115 926 987 693 225 Hop 17 | . . . . . . . . . . . . 6 8 . 3 Pick Up 148 | 2 12 22 2 2 15 8 1 24 3 . 24 17 7 9 . Fast Attach 120 | 6 6 13 . . 3 2 . 25 10 . 4 17 4 24 6 Attach 82 | . 1 2 1 1 11 11 . 9 7 . 2 19 7 7 4 Detach 28 | . 1 . . . 3 4 . 2 7 . . 4 3 2 2 Swap 62 | . 2 10 2 1 17 13 . 4 3 . 1 9 . . . Drop 158 | . 6 28 2 2 14 16 2 24 15 . 19 10 5 11 4 Fire 718 | . 75 119 1 5 109 88 . 48 42 . . 139 12 76 4 Melee 72 | . . . . . . . . 34 . . . . . 10 28 Ram 13 | . . . . . . . . 3 5 . . . . 5 . Kick 4 | . . . . . . . . . . . . 3 . 1 . Crush 15 | . 2 3 5 . . . . . . . . 5 . . . Escape Stasis 5 | . . . . . . . . . 5 . . . . . . Rewire 95 | . . . . . . . . . . 45 . . 50 . . Trap . | . . . . . . . . . . . . . . . . Miscellaneous . | . . . . . . . . . . . . . . . . Route ------- -11/Scrapyard -10/Materials (discovered 5 exits: *Mat x3 / [*Min x2]) -9/Materials (discovered 4 exits: *Mat x3 / *Min) -9/Mines (discovered 2 exits: *Mat x2) -8/Materials (discovered 2 exits: Fac / Gar) -8/Garrison (discovered 3 exits: *Fac x3) -7/Factory -7/Waste -7/Factory (discovered 2 exits: *Fac / *Sto) -7/Storage (discovered 2 exits: *Fac / *Rec) -7/Recycling (discovered 2 exits: *Fac / *Scr) -7/Scraptown (discovered 2 exits: *Fac x2) -5/Factory (discovered 7 exits: *Fac x3 / *Upp x2 / *Ext x2) -5/Extension -4/Factory (discovered 3 exits: Upp x2 / *Arm) -4/Armory History --------- Turn | Location | Event 30 | -11/Scrapyard | Discovered new exit (range 16) 74 | -11/Scrapyard | Entered Materials 308 | -10/Materials | Build established: Mutant 338 | -10/Materials | Discovered new exit (range 15) 437 | -10/Materials | Discovered new exit (range 8) 658 | -10/Materials | Discovered new exit (range 16) 674 | -10/Materials | Derelicts attacked the area 937 | -10/Materials | Discovered new exit (range 8) 986 | -10/Materials | Core integrity fell below 50% 1109 | -10/Materials | Discovered new exit (range 7) 1308 | -10/Materials | Entered another Materials area 1308 | -9/Materials | Evolved 2 slots: Propulsion x1, Utility x1 1364 | -9/Materials | Repaired Lgt. Treads 2271 | -9/Materials | Central database locked down 2701 | -9/Materials | Discovered new exit (range 8) 2815 | -9/Materials | Identified exit to Mines 3380 | -9/Materials | Learned Storage terminal intel 3387 | -9/Materials | Discovered new exit (range 10) 3435 | -9/Materials | Learned Storage emergency access door positions 3479 | -9/Materials | Identified exit to Materials 3513 | -9/Materials | Loaded intel: 2 repair station locations 3558 | -9/Materials | Learned 2 Materials zone layouts 3573 | -9/Materials | Learned Storage trap positions 3600 | -9/Materials | Learned 4 Materials zone layouts 3635 | -9/Materials | Learned Storage stockpile data 3669 | -9/Materials | Entered Mines 3679 | -9/Mines | Learned Materials stockpile data 3721 | -9/Mines | Assisted by bots powering up and referring to "LRC-V3" 3782 | -9/Mines | Met a Derelict shopkeep closing up shop 3840 | -9/Mines | Learned location of Zion (-7) 4059 | -9/Mines | Discovered exit to Materials (range 8) 4288 | -9/Mines | Discovered exit to Materials (range 5) 4601 | -9/Mines | Entered Materials 4601 | -8/Materials | Accompanied by 3 allies 4601 | -8/Materials | Evolved 2 slots: Propulsion x1, Utility x1 4602 | -8/Materials | Identified exit to Factory 4653 | -8/Materials | Garrison activated, responded to threat 4699 | -8/Materials | Lost 3 allies 4751 | -8/Materials | Identified exit to Garrison 4752 | -8/Materials | Entered Garrison 5000 | -8/Garrison | Triggered checkpoint 5077 | -8/Garrison | Discovered exit to Factory (range 10) 5198 | -8/Garrison | Triggered checkpoint 5282 | -8/Garrison | Garrison Relay disabled 5314 | -8/Garrison | Discovered exit to Factory (range 10) 5396 | -8/Garrison | Triggered checkpoint 5574 | -8/Garrison | Triggered checkpoint 5676 | -8/Garrison | Triggered checkpoint 5739 | -8/Garrison | Discovered exit to Factory (range 3) 5764 | -8/Garrison | Hacking Suite fried by hacking feedback 5808 | -8/Garrison | Lost 3 parts (1n1u1w) 5962 | -8/Garrison | Triggered checkpoint 6471 | -8/Garrison | Triggered checkpoint 6638 | -8/Garrison | Attempted to access garrison exit controls, blocked by remote lockdown 6788 | -8/Garrison | Entered Factory 6788 | -7/Factory | Evolved 2 slots: Utility x2 6789 | -7/Factory | Identified exit to Storage 7198 | -7/Factory | Garrison activated, responded to threat 7240 | -7/Factory | Found Prototype Launcher 7241 | -7/Factory | Identified Rocket Array 7246 | -7/Factory | Destroyed 7 combat bots 7353 | -7/Factory | Garrison activated, responded to threat 7692 | -7/Factory | Build established: Scavenger-Mutant 7988 | -7/Factory | First assault squad dispatched 8077 | -7/Factory | Garrison activated, responded to threat 8078 | -7/Factory | Cargo convoy interrupted 8140 | -7/Factory | Destroyed 11 combat bots 8175 | -7/Factory | Lost 10 parts (1p6n2u1w) 8187 | -7/Factory | Sucked down chute 8187 | -7/Factory | Entered Waste 8188 | -7/Waste | Met a frightened Derelict 8198 | -7/Waste | Spotted C-40 Crusher 8202 | -7/Waste | EMP discharged 8202 | -7/Waste | System corruption reached 10% 8205 | -7/Waste | Spotted C-40 Crusher 8207 | -7/Waste | Spotted C-40 Crusher 8209 | -7/Waste | Spotted C-40 Crusher 8211 | -7/Waste | Spotted C-40 Crusher 8219 | -7/Waste | Discovered new exit (range 15) 8220 | -7/Waste | Spotted C-40 Crusher 8229 | -7/Waste | Entered Factory 8454 | -7/Factory | Discovered exit to Storage (range 16) 8636 | -7/Factory | Core integrity fell below 50% 8660 | -7/Factory | Lost 3 parts (3n) 8684 | -7/Factory | Build established: Scavenger-Assassin 9067 | -7/Factory | Discovered new exit (range 6) 9074 | -7/Factory | Identified exit to Factory 9179 | -7/Factory | Build established: Scavenger-Skirmisher 9542 | -7/Factory | Build established: Mutant 9563 | -7/Factory | Entered Storage 9564 | -7/Storage | Loaded intel: 14 trap records 9567 | -7/Storage | Loaded intel: 13 terminal locations 9845 | -7/Storage | Core integrity fell below 20% 9855 | -7/Storage | Garrison activated, responded to threat 9892 | -7/Storage | Discovered exit to Factory (range 16) 9934 | -7/Storage | Lost 6 parts (1p1n2u2w) 10077 | -7/Storage | Used back door to open Recycling access 10077 | -7/Storage | Discovered new exit (range 4) 10078 | -7/Storage | Entered Recycling 10494 | -7/Recycling | Discovered new exit (range 5) 10514 | -7/Recycling | Scanned before Scraplab entrance 10521 | -7/Recycling | Entered Scraplab 10525 | -7/Recycling | Discovered new exit (range 3) 10529 | -7/Recycling | Build established: Commander-Mutant 10581 | -7/Recycling | Entered Scraptown 10581 | -7/Scraptown | Accompanied by 5 allies 10581 | -7/Scraptown | System corruption cleaned by C-Scrubber 10674 | -7/Scraptown | Discovered new exit (range 13) 10688 | -7/Scraptown | Visited Assassins FH 10698 | -7/Scraptown | Visited Fellowship of the Rings 10709 | -7/Scraptown | Visited The Evicted 10725 | -7/Scraptown | Visited Cyclists 10733 | -7/Scraptown | Heard Great Nut preacher, LISTEN AND RECITE! 10743 | -7/Scraptown | Visited Comm Corps 10768 | -7/Scraptown | Visited CPS Storage 10861 | -7/Scraptown | Visited UFD Registry 10861 | -7/Scraptown | Registered with UFD as "Quantummod" 10876 | -7/Scraptown | Visited Curators Association 10893 | -7/Scraptown | Visited LU-1G1's Boring Crew 10901 | -7/Scraptown | Visited Scrapoid Pod Storage 10937 | -7/Scraptown | Discovered new exit (range 5) 10951 | -7/Scraptown | Visited Cartography Club 10985 | -7/Scraptown | Learned location of Cetus (-5) 10985 | -7/Scraptown | Learned 20 Factory zone layouts 10985 | -7/Scraptown | Learned 4 Recycling zone layouts 10985 | -7/Scraptown | Learned 12 Lower Caves zone layouts 10985 | -7/Scraptown | Learned 20 Upper Caves zone layouts 10985 | -7/Scraptown | Learned 4 Hub_04(d) zone layouts 10985 | -7/Scraptown | Learned location of 1 exit from Research 10985 | -7/Scraptown | Learned location of 2 exits from Research 10985 | -7/Scraptown | Learned location of 3 exits from Upper Caves 11059 | -7/Scraptown | Visited Observation Area 11070 | -7/Scraptown | Visited Analyses Database 11256 | -7/Scraptown | Visited Junk Repository 11270 | -7/Scraptown | Visited Junk Repository 11277 | -7/Scraptown | Visited Chapter 10 11341 | -7/Scraptown | Found Scrapoid Pod 11593 | -7/Scraptown | Entered Cyclist Reading Room 11646 | -7/Scraptown | Met Optimus 11646 | -7/Scraptown | Accepted into 0bPrime 11728 | -7/Scraptown | Entered Factory 11728 | -5/Factory | Accompanied by 5 allies 11728 | -5/Factory | Evolved 4 slots: Power x1, Propulsion x1, Utility x2 11729 | -5/Factory | Identified exit to Factory 11730 | -5/Factory | Identified exit to Extension 11730 | -5/Factory | Identified exit to Upper Caves 11828 | -5/Factory | Lost 6 allies 11976 | -5/Factory | Garrison activated, responded to threat 12253 | -5/Factory | Build established: Scavenger-Mutant 12366 | -5/Factory | Lost 3 parts (2n1u) 12555 | -5/Factory | Garrison activated, responded to threat 12898 | -5/Factory | Lost 4 parts (1n2u1w) 12903 | -5/Factory | Destroyed 13 combat bots 12951 | -5/Factory | Lost 3 parts (1p2u) 13115 | -5/Factory | Loaded intel: 8 recycling unit locations 13208 | -5/Factory | Core integrity fell below 50% 13250 | -5/Factory | Learned location of Protoforge (-3) 13296 | -5/Factory | Lost 12 parts (1p6n2u3w) 13364 | -5/Factory | Entered Extension 13398 | -5/Extension | Rescued a captive Derelict 13400 | -5/Extension | Rescued a captive Derelict 13467 | -5/Extension | Assembled infested ambush trap array 13589 | -5/Extension | Disrupted transfer network 13863 | -5/Extension | Rescued a captive Derelict 13865 | -5/Extension | Rescued a captive Derelict 13866 | -5/Extension | Rescued a captive Derelict 13877 | -5/Extension | Rescued A7 13877 | -5/Extension | Core integrity fell below 20% 13921 | -5/Extension | Spotted B-75 Beast 13934 | -5/Extension | Lost 3 parts (1n2u) 13964 | -5/Extension | First assault squad dispatched 14022 | -5/Extension | Spotted B-75 Beast 14027 | -5/Extension | Discovered exit to Factory (range 3) 14036 | -5/Extension | Entered Factory 14036 | -4/Factory | Evolved 2 slots: Propulsion x1, Utility x1 14066 | -4/Factory | Lost 3 parts (1n2u) 14201 | -4/Factory | Scrapoids reinforcements arrived? 14226 | -4/Factory | Found Scrap Suit 14329 | -4/Factory | Lost 4 allies 14426 | -4/Factory | Lost 4 parts (1p2n1u) 14512 | -4/Factory | Spotted B-86 Titan 14536 | -4/Factory | First assault squad dispatched 14584 | -4/Factory | Identified exit to Upper Caves 14584 | -4/Factory | Identified exit to Armory 14807 | -4/Factory | Entered Armory 14890 | -4/Armory | Core integrity fell below 50% 14954 | -4/Armory | Lost 6 parts (1p2n2u1w) 14988 | -4/Armory | Core integrity fell below 20% 15009 | -4/Armory | Destroyed by C-35 Carver with Carbide Saw Last Messages --------------- 14967_ Mic. Fission Core destroyed. 14969_ Kinetic Spear follow-up attack on G-67 Veteran. 14978_ Acquired Flexi-carbon Leg. 14985_ Dropped Flexi-carbon Leg. 14987_ Plasma Lance destroyed. 14993_ System corrupted: Substantial component data lost. 14996_ Adv. System Shield destroyed. 14996_ Cld. Nuclear Pulse Thruster destroyed. 14996_ Knocked back. 14996_ Compression Vault explodes. 14996_ Knocked back. 14996_ Compression Vault explodes. 14996_ Cld. Field Propulsion Drive destroyed. 14996_ O-24 Administrator: "IFF HANDSHAKE FAILED. SECURING TERMINAL." 15008_ ALERT: Hostiles spotted, dispatching reinforcements to Terminal A012. 15008_ Acquired Impulse Thruster Array. Map ----- +----------------------------------------------------+ | | | | | | | | | | | | | | | | | | | | | | | | | ?????????????????????????????????????????????????? | | ?????????????????????????????????????????????????? | | ?????????????????????????????????????????????????? | | ?????????????????????????????????????????????????? | | ?????????????????????????????????????????????????? | | ?????????????????????????????????????????????????? | | ?????????????????????????????????????????????????? | | ?????????????????????????????????????????????????? | | ?????????????????????????????????????????????????? | | ?????????????????????##########################??# | | ?????????????????????# #?""""" / # | | ?????????????????????# #?"" F" """ # | | ?????????????????????# ====== #??" "" """ # | | ?????????????????????# @c==== #??? * """ # | | ?????????????????????# c #???? # | | ?????????????????????##+#####+#####????? # | | ???????????????????# ## ### ########## # ## | | ???????????????????" | | ???????????????????" ! T | | ???????????????????" ###### ##### # # | | ???????????????????#T?????######???# # = | | ???????????????????#???????????????# # | | ???????????????????????????????????# # | | ???????????????????????????????????# # | | ???????????????????????????????????# # | | ???????????????????????????????????# # | | ???????????????????????????????????# ## ## | | ???????????????????????????????????# # ] ! | | ???????????????????????????????????# + | | ???????????????????????????????????# # """" """" | | ???????????????????????????????????# # """" """" | | ???????????????????????????????????# # """" """" | | ???????????????!??????????????????? # """" """? | | ?????????????????????????????????? + ? | | ?????????????????????????????????"" # """" ""?? | | ????????????????????????????????""" # """"????? | | ???????????????????????????????"""" # """?????? | | ????????????????????????????????? # "???????? | +----------------------------------------------------+ Best States ------------- Heat Dissipation 81 Energy Generation 39 Energy Capacity 375 Matter Stores 300 Matter Capacity 300 Sight Range 16 Robot Scan Range 15 Terrain Scan Density 10 Armor Coverage 1200 Resistance: KI 30 Resistance: TH 20 Resistance: EX 25 Resistance: EM 15 Weapon Cycling 20 Evasion (%) 65 Target Analysis 6 Core Analysis 6 Recoil Reduction 5 Matter Filtering 30 Offensive Hacking 24 Defensive Hacking 24 Item Schematics ----------------- Targeting Computer | -10/Materials | Hacked Flight Unit | -10/Materials | Hacked Seismic Detector | -10/Materials | Hacked Enh. Autogun | -9/Materials | Scanalyzed Robot Schematics ------------------ None Fabricated ------------ Nothing Repaired ---------- Lgt. Treads | 12% | -9/Materials Alien Tech Used ----------------- None Achievements -------------- None Challenges ------------ None Game ------ Seed ClaymoresAerolevPit Manual? 0 Play Time 02:06:57 Cumulative 964.3 hours Start 2025.05.09 @ 15:59:00 End 2025.05.09 @ 18:07:40 Sessions 1 Manual Loads 0 Difficulty Rogue Special Mode None Game No. 587 Rogue 580 Adventurer 0 Explorer 7 Win Type - Total 65 Types 23/6/24/2/0/1/6/1/2/0 Lore% 89 Gallery% 87 Achievement% 85 Wizard Run 0 Options --------- Layout 1 ASCII 0 Keyboard 0 Movement Numpad Keybinds 0 Fullscreen 2 Font 24/Smallcaps Map View 50x35 Zoom Use 0% Tactical HUD 1 Map Filters NONE Filters NONE Steam 1 RUN: 37f24f00-08c5-4a83-b7b2-ccddc4729b24